[Event "Titled Tuesday Blitz March 07 Late 2023"]
[White "Leiva, Gianmarco"]
[Black "Nunez V, Gustavo Eduardo"]
[WhiteFideId "3804399"]
[BlackFideId "4403690"]
[WhiteElo "2345"]
[BlackElo "2228"]
[Result "1-0"]
[Round "02"]
[TimeControl "180+2"]
[Date "2023.03.07"]
[WhiteClock "0:00:05"]
[BlackClock "0:00:37"]

1. e4 {[%clk 0:02:55]}  c5 {[%clk 0:02:59]} 2. Nf3 {[%clk 0:02:55]}  Nc6 {[%clk 0:03:00]} 3. Bb5 {[%clk 0:02:54]}  g6 {[%clk 0:03:00]} 4. O-O {[%clk 0:02:54]}  Bg7 {[%clk 0:02:59]} 5. c3 {[%clk 0:02:54]}  e5 {[%clk 0:02:58]} 6. d4 {[%clk 0:02:41]}  exd4 {[%clk 0:02:51]} 7. cxd4 {[%clk 0:02:41]}  Nxd4 {[%clk 0:02:45]} 8. Nxd4 {[%clk 0:02:41]}  Bxd4 {[%clk 0:02:41]} 9. Nc3 {[%clk 0:02:41]}  a6 {[%clk 0:02:40]} 10. Bc4 {[%clk 0:02:32]}  d6 {[%clk 0:02:40]} 11. Qb3 {[%clk 0:02:17]}  b5 {[%clk 0:02:05]} 12. Bxf7+ {[%clk 0:02:17]}  Kf8 {[%clk 0:02:06]} 13. Bd5 {[%clk 0:01:16]}  Ra7 {[%clk 0:02:03]} 14. Be3 {[%clk 0:01:16]}  Qf6 {[%clk 0:02:01]} 15. Bxd4 {[%clk 0:01:13]}  Qxd4 {[%clk 0:02:00]} 16. Rad1 {[%clk 0:01:12]}  Qf6 {[%clk 0:01:57]} 17. f4 {[%clk 0:01:09]}  Kg7 {[%clk 0:01:56]} 18. e5 {[%clk 0:01:08]}  dxe5 {[%clk 0:01:56]} 19. Ne4 {[%clk 0:01:09]}  Qe7 {[%clk 0:01:51]} 20. fxe5 {[%clk 0:01:01]}  Qxe5 {[%clk 0:01:51]} 21. Nxc5 {[%clk 0:00:47]}  Nf6 {[%clk 0:01:44]} 22. Rfe1 {[%clk 0:00:14]}  Qd6 {[%clk 0:01:38]} 23. Qc3 {[%clk 0:00:15]}  Rc7 {[%clk 0:01:35]} 24. b4 {[%clk 0:00:15]}  Bf5 {[%clk 0:01:34]} 25. Be4 {[%clk 0:00:10]}  Qf4 {[%clk 0:01:23]} 26. Bxf5 {[%clk 0:00:09]}  Qxf5 {[%clk 0:01:22]} 27. Ne6+ {[%clk 0:00:09]}  Kh6 {[%clk 0:01:21]} 28. Qxc7 {[%clk 0:00:07]}  Nh5 {[%clk 0:01:13]} 29. Qc1+ {[%clk 0:00:07]}  g5 {[%clk 0:01:12]} 30. Nxg5 {[%clk 0:00:06]}  Kg6 {[%clk 0:00:55]} 31. Rd6+ {[%clk 0:00:06]}  Nf6 {[%clk 0:00:55]} 32. Rf1 {[%clk 0:00:04]}  Qxf1+ {[%clk 0:00:40]} 33. Qxf1 {[%clk 0:00:04]}  Rf8 {[%clk 0:00:41]} 34. Nxh7 {[%clk 0:00:03]}  Kxh7 {[%clk 0:00:39]} 35. Rxf6 {[%clk 0:00:04]}  Rg8 {[%clk 0:00:38]} 36. Qf5+ {[%clk 0:00:04]}  Kh8 {[%clk 0:00:37]} 37. Qh5+ {[%clk 0:00:04]}  Kg7 {[%clk 0:00:37]} 38. Rf7# {[%clk 0:00:05]} 1-0


[Site "https://www.chess.com"]

[Event "Titled Tuesday Blitz March 07 Late 2023"]
[White "Shapiro, Viktor"]
[Black "Benaddi, Mouhcine"]
[WhiteFideId "4175700"]
[BlackFideId "9001050"]
[WhiteElo "2152"]
[BlackElo "2036"]
[Result "1-0"]
[Round "02"]
[TimeControl "180+2"]
[Date "2023.03.07"]
[WhiteClock "0:02:09"]
[BlackClock "0:01:30"]

1. c4 {[%clk 0:03:00]}  e6 {[%clk 0:02:58]} 2. Nc3 {[%clk 0:03:00]}  d5 {[%clk 0:02:58]} 3. d4 {[%clk 0:03:00]}  Nf6 {[%clk 0:02:58]} 4. Nf3 {[%clk 0:03:00]}  Be7 {[%clk 0:02:56]} 5. Bg5 {[%clk 0:03:00]}  c6 {[%clk 0:02:53]} 6. e3 {[%clk 0:03:00]}  O-O {[%clk 0:02:52]} 7. Qc2 {[%clk 0:03:01]}  Nbd7 {[%clk 0:02:52]} 8. O-O-O {[%clk 0:02:58]}  b6 {[%clk 0:02:51]} 9. g4 {[%clk 0:02:57]}  Nxg4 {[%clk 0:02:37]} 10. Bxe7 {[%clk 0:02:57]}  Qxe7 {[%clk 0:02:37]} 11. Rg1 {[%clk 0:02:57]}  f5 {[%clk 0:02:36]} 12. h3 {[%clk 0:02:51]}  Ngf6 {[%clk 0:02:36]} 13. cxd5 {[%clk 0:02:48]}  cxd5 {[%clk 0:02:36]} 14. Kb1 {[%clk 0:02:38]}  a5 {[%clk 0:02:30]} 15. Bb5 {[%clk 0:02:31]}  Ba6 {[%clk 0:02:25]} 16. Ne5 {[%clk 0:02:20]}  Bxb5 {[%clk 0:02:04]} 17. Nxb5 {[%clk 0:02:19]}  Nxe5 {[%clk 0:02:04]} 18. dxe5 {[%clk 0:02:18]}  Nd7 {[%clk 0:01:58]} 19. f4 {[%clk 0:02:14]}  Rfc8 {[%clk 0:01:53]} 20. Qg2 {[%clk 0:02:13]}  Nc5 {[%clk 0:01:39]} 21. Nd6 {[%clk 0:02:12]}  Rc7 {[%clk 0:01:35]} 22. Rxd5 {[%clk 0:02:10]}  exd5 {[%clk 0:01:29]} 23. Qxd5+ {[%clk 0:02:09]}  Qe6 {[%clk 0:01:30]} 24. Qxa8+ {[%clk 0:02:09]} 1-0


[Site "https://www.chess.com"]

[Event "Titled Tuesday Blitz March 07 Late 2023"]
[White "Danielian, Vardan"]
[Black "Mesa Cruz, Juan Carlos"]
[WhiteFideId "13301594"]
[BlackFideId "6423400"]
[WhiteElo "2559"]
[BlackElo "2119"]
[Result "1-0"]
[Round "02"]
[TimeControl "180+2"]
[Date "2023.03.07"]
[WhiteClock "0:02:10"]
[BlackClock "0:02:17"]

1. d4 {[%clk 0:03:00]}  Nf6 {[%clk 0:02:59]} 2. c4 {[%clk 0:03:00]}  e6 {[%clk 0:02:59]} 3. Nf3 {[%clk 0:03:00]}  Bb4+ {[%clk 0:02:58]} 4. Bd2 {[%clk 0:03:00]}  Qe7 {[%clk 0:02:59]} 5. g3 {[%clk 0:02:59]}  b6 {[%clk 0:02:57]} 6. Bg2 {[%clk 0:03:00]}  Bb7 {[%clk 0:02:57]} 7. O-O {[%clk 0:03:00]}  O-O {[%clk 0:02:57]} 8. a3 {[%clk 0:02:59]}  Bxd2 {[%clk 0:02:53]} 9. Nbxd2 {[%clk 0:02:58]}  c5 {[%clk 0:02:52]} 10. e3 {[%clk 0:02:55]}  d6 {[%clk 0:02:51]} 11. Rc1 {[%clk 0:02:44]}  Nbd7 {[%clk 0:02:49]} 12. Qe2 {[%clk 0:02:42]}  Rac8 {[%clk 0:02:49]} 13. Rfd1 {[%clk 0:02:42]}  Rfd8 {[%clk 0:02:48]} 14. b4 {[%clk 0:02:38]}  d5 {[%clk 0:02:39]} 15. bxc5 {[%clk 0:02:31]}  bxc5 {[%clk 0:02:39]} 16. cxd5 {[%clk 0:02:29]}  cxd4 {[%clk 0:02:33]} 17. dxe6 {[%clk 0:02:21]}  Rxc1 {[%clk 0:02:31]} 18. Rxc1 {[%clk 0:02:16]}  Qxe6 {[%clk 0:02:17]} 19. Nxd4 {[%clk 0:02:13]}  Qb6 {[%clk 0:02:17]} 20. Rb1 {[%clk 0:02:10]} 1-0


[Site "https://www.chess.com"]

[Event "Titled Tuesday Blitz March 07 Late 2023"]
[White "Seletsky, Grigory"]
[Black "Janaszak, Dawid"]
[WhiteFideId "14112191"]
[BlackFideId "1119206"]
[WhiteElo "2490"]
[BlackElo "2220"]
[Result "1-0"]
[Round "02"]
[TimeControl "180+2"]
[Date "2023.03.07"]
[WhiteClock "0:00:04"]
[BlackClock "0:00:08"]

1. e4 {[%clk 0:02:11]}  c5 {[%clk 0:02:59]} 2. Nc3 {[%clk 0:02:10]}  Nc6 {[%clk 0:02:59]} 3. d3 {[%clk 0:02:10]}  g6 {[%clk 0:02:59]} 4. Be3 {[%clk 0:02:11]}  d6 {[%clk 0:02:58]} 5. d4 {[%clk 0:02:11]}  cxd4 {[%clk 0:02:57]} 6. Bxd4 {[%clk 0:02:12]}  Nxd4 {[%clk 0:02:58]} 7. Qxd4 {[%clk 0:02:12]}  Nf6 {[%clk 0:02:58]} 8. e5 {[%clk 0:02:13]}  Nd7 {[%clk 0:02:49]} 9. e6 {[%clk 0:02:10]}  f6 {[%clk 0:02:13]} 10. Bb5 {[%clk 0:02:01]}  Bg7 {[%clk 0:02:07]} 11. Nge2 {[%clk 0:01:40]}  O-O {[%clk 0:02:07]} 12. exd7 {[%clk 0:01:38]}  Bxd7 {[%clk 0:02:07]} 13. Bxd7 {[%clk 0:01:36]}  Qxd7 {[%clk 0:02:08]} 14. O-O-O {[%clk 0:01:33]}  f5 {[%clk 0:02:08]} 15. Qd5+ {[%clk 0:01:28]}  Kh8 {[%clk 0:02:08]} 16. Nd4 {[%clk 0:01:28]}  Rf6 {[%clk 0:02:02]} 17. Rhe1 {[%clk 0:01:22]}  e5 {[%clk 0:02:00]} 18. Rxe5 {[%clk 0:01:12]}  h6 {[%clk 0:01:51]} 19. Re6 {[%clk 0:01:10]}  Raf8 {[%clk 0:01:50]} 20. Rxf6 {[%clk 0:01:07]}  Rxf6 {[%clk 0:01:51]} 21. f4 {[%clk 0:01:06]}  Qe8 {[%clk 0:01:48]} 22. Qf3 {[%clk 0:01:01]}  Rf7 {[%clk 0:01:47]} 23. Nd5 {[%clk 0:01:00]}  Qa4 {[%clk 0:01:44]} 24. Qb3 {[%clk 0:00:56]}  Qe8 {[%clk 0:01:38]} 25. Qd3 {[%clk 0:00:47]}  Rf8 {[%clk 0:01:30]} 26. Kb1 {[%clk 0:00:46]}  Qa4 {[%clk 0:01:28]} 27. c3 {[%clk 0:00:44]}  Re8 {[%clk 0:01:25]} 28. Qc2 {[%clk 0:00:42]}  Qd7 {[%clk 0:01:24]} 29. g3 {[%clk 0:00:41]}  Re4 {[%clk 0:01:23]} 30. a3 {[%clk 0:00:40]}  Qe8 {[%clk 0:01:22]} 31. Nb4 {[%clk 0:00:39]}  Kh7 {[%clk 0:01:18]} 32. Ka2 {[%clk 0:00:38]}  Qf7+ {[%clk 0:01:17]} 33. Qb3 {[%clk 0:00:38]}  Qe8 {[%clk 0:01:18]} 34. Qd5 {[%clk 0:00:35]}  b6 {[%clk 0:01:15]} 35. Qxd6 {[%clk 0:00:33]}  Bf8 {[%clk 0:01:11]} 36. Qd5 {[%clk 0:00:33]}  Bg7 {[%clk 0:01:10]} 37. Nbc6 {[%clk 0:00:32]}  a5 {[%clk 0:01:08]} 38. a4 {[%clk 0:00:31]}  h5 {[%clk 0:01:07]} 39. Ne5 {[%clk 0:00:29]}  h4 {[%clk 0:01:08]} 40. Nef3 {[%clk 0:00:27]}  Qxa4+ {[%clk 0:01:08]} 41. Kb1 {[%clk 0:00:25]}  Qxd1+ {[%clk 0:01:09]} 42. Ka2 {[%clk 0:00:26]}  Qa4+ {[%clk 0:01:06]} 43. Kb1 {[%clk 0:00:25]}  Re7 {[%clk 0:00:56]} 44. Ng5+ {[%clk 0:00:24]}  Kh6 {[%clk 0:00:54]} 45. Nxf5+ {[%clk 0:00:18]}  gxf5 {[%clk 0:00:42]} 46. Qd6+ {[%clk 0:00:18]}  Kh5 {[%clk 0:00:37]} 47. Qxe7 {[%clk 0:00:19]}  Qd1+ {[%clk 0:00:35]} 48. Ka2 {[%clk 0:00:18]}  hxg3 {[%clk 0:00:25]} 49. hxg3 {[%clk 0:00:16]}  Bh6 {[%clk 0:00:21]} 50. Ne6 {[%clk 0:00:15]}  Kg4 {[%clk 0:00:18]} 51. Nd4 {[%clk 0:00:13]}  Kxg3 {[%clk 0:00:15]} 52. Nxf5+ {[%clk 0:00:12]}  Kxf4 {[%clk 0:00:16]} 53. Nxh6 {[%clk 0:00:11]}  Qa4+ {[%clk 0:00:16]} 54. Kb1 {[%clk 0:00:10]}  Qd1+ {[%clk 0:00:16]} 55. Ka2 {[%clk 0:00:11]}  Qa4+ {[%clk 0:00:17]} 56. Qa3 {[%clk 0:00:10]}  Qc4+ {[%clk 0:00:16]} 57. Qb3 {[%clk 0:00:10]}  Qe2 {[%clk 0:00:16]} 58. Nf7 {[%clk 0:00:09]}  Qe3 {[%clk 0:00:11]} 59. Qd5 {[%clk 0:00:09]}  Qe7 {[%clk 0:00:09]} 60. Nd6 {[%clk 0:00:09]}  Qf8 {[%clk 0:00:08]} 61. Nc4 {[%clk 0:00:09]}  a4 {[%clk 0:00:07]} 62. Nxb6 {[%clk 0:00:08]}  a3 {[%clk 0:00:07]} 63. Qd4+ {[%clk 0:00:06]}  Kg3 {[%clk 0:00:07]} 64. b4 {[%clk 0:00:06]}  Qf7+ {[%clk 0:00:06]} 65. Kxa3 {[%clk 0:00:06]}  Qf1 {[%clk 0:00:07]} 66. Nc4 {[%clk 0:00:05]}  Qa1+ {[%clk 0:00:07]} 67. Kb3 {[%clk 0:00:05]}  Qb1+ {[%clk 0:00:08]} 68. Nb2 {[%clk 0:00:05]}  Qh7 {[%clk 0:00:09]} 69. Qd3+ {[%clk 0:00:05]}  Kg4 {[%clk 0:00:08]} 70. Qxh7 {[%clk 0:00:04]} 1-0


[Site "https://www.chess.com"]

[Event "Titled Tuesday Blitz March 07 Late 2023"]
[White "Hollan, Martin"]
[Black "Fernandez Siles, Luis"]
[WhiteFideId "360937"]
[BlackFideId "2209420"]
[WhiteElo "2370"]
[BlackElo "2186"]
[Result "0-1"]
[Round "02"]
[TimeControl "180+2"]
[Date "2023.03.07"]
[WhiteClock "0:00:02"]
[BlackClock "0:01:24"]

1. d4 {[%clk 0:03:00]}  Nf6 {[%clk 0:02:59]} 2. Nf3 {[%clk 0:03:00]}  g6 {[%clk 0:02:59]} 3. c4 {[%clk 0:03:00]}  Bg7 {[%clk 0:02:59]} 4. Nc3 {[%clk 0:03:00]}  O-O {[%clk 0:02:59]} 5. e4 {[%clk 0:02:59]}  d6 {[%clk 0:03:00]} 6. Be2 {[%clk 0:02:59]}  c5 {[%clk 0:03:00]} 7. O-O {[%clk 0:02:56]}  Nc6 {[%clk 0:03:01]} 8. d5 {[%clk 0:02:39]}  Na5 {[%clk 0:03:01]} 9. h3 {[%clk 0:02:36]}  e5 {[%clk 0:02:59]} 10. Bg5 {[%clk 0:02:30]}  h6 {[%clk 0:02:59]} 11. Be3 {[%clk 0:02:30]}  Nd7 {[%clk 0:02:52]} 12. Nd2 {[%clk 0:02:27]}  f5 {[%clk 0:02:49]} 13. f3 {[%clk 0:02:21]}  f4 {[%clk 0:02:44]} 14. Bf2 {[%clk 0:02:21]}  g5 {[%clk 0:02:43]} 15. a3 {[%clk 0:02:21]}  b6 {[%clk 0:02:44]} 16. b4 {[%clk 0:02:20]}  Nb7 {[%clk 0:02:44]} 17. Nb3 {[%clk 0:02:12]}  Nf6 {[%clk 0:02:28]} 18. Re1 {[%clk 0:00:29]}  h5 {[%clk 0:02:26]} 19. Rb1 {[%clk 0:00:22]}  Rf7 {[%clk 0:02:17]} 20. bxc5 {[%clk 0:00:19]}  bxc5 {[%clk 0:02:15]} 21. Kf1 {[%clk 0:00:17]}  Bh6 {[%clk 0:02:00]} 22. Bd3 {[%clk 0:00:15]}  Rg7 {[%clk 0:02:00]} 23. Ke2 {[%clk 0:00:15]}  g4 {[%clk 0:02:01]} 24. hxg4 {[%clk 0:00:15]}  hxg4 {[%clk 0:02:01]} 25. Rh1 {[%clk 0:00:15]}  gxf3+ {[%clk 0:02:00]} 26. gxf3 {[%clk 0:00:15]}  Rg6 {[%clk 0:01:52]} 27. Qc2 {[%clk 0:00:14]}  Bg7 {[%clk 0:01:49]} 28. Rbg1 {[%clk 0:00:13]}  Rxg1 {[%clk 0:01:45]} 29. Rxg1 {[%clk 0:00:13]}  a5 {[%clk 0:01:45]} 30. Qd1 {[%clk 0:00:13]}  a4 {[%clk 0:01:44]} 31. Nd2 {[%clk 0:00:13]}  Bd7 {[%clk 0:01:43]} 32. Qf1 {[%clk 0:00:12]}  Na5 {[%clk 0:01:40]} 33. Qg2 {[%clk 0:00:12]}  Qe7 {[%clk 0:01:40]} 34. Bh4 {[%clk 0:00:13]}  Qf7 {[%clk 0:01:40]} 35. Kf2 {[%clk 0:00:06]}  Rb8 {[%clk 0:01:37]} 36. Qxg7+ {[%clk 0:00:04]}  Qxg7 {[%clk 0:01:34]} 37. Bxf6 {[%clk 0:00:04]}  Qxg1+ {[%clk 0:01:31]} 38. Kxg1 {[%clk 0:00:05]}  Rb2 {[%clk 0:01:29]} 39. Ncb1 {[%clk 0:00:05]}  Nb3 {[%clk 0:01:28]} 40. Nf1 {[%clk 0:00:04]}  Nc1 {[%clk 0:01:28]} 41. Be7 {[%clk 0:00:01]}  Nxd3 {[%clk 0:01:27]} 42. Bxd6 {[%clk 0:00:02]}  Ne1 {[%clk 0:01:27]} 43. Nbd2 {[%clk 0:00:02]}  Bh3 {[%clk 0:01:25]} 44. Bxc5 {[%clk 0:00:02]}  Nd3 {[%clk 0:01:24]} 45. Bd6 {[%clk 0:00:02]}  Bxf1 {[%clk 0:01:24]} 0-1


[Site "https://www.chess.com"]

[Event "Titled Tuesday Blitz March 07 Late 2023"]
[White "Risteski, Emil"]
[Black "Lacasa Diaz, Jose Antonio"]
[WhiteFideId "15005267"]
[BlackFideId "2203375"]
[WhiteElo "2251"]
[BlackElo "2338"]
[Result "1-0"]
[Round "02"]
[TimeControl "180+2"]
[Date "2023.03.07"]
[WhiteClock "0:00:06"]
[BlackClock "0:00:11"]

1. c4 {[%clk 0:03:00]}  e6 {[%clk 0:02:59]} 2. d4 {[%clk 0:03:00]}  d5 {[%clk 0:03:00]} 3. cxd5 {[%clk 0:03:00]}  exd5 {[%clk 0:03:00]} 4. Nc3 {[%clk 0:03:01]}  c5 {[%clk 0:03:01]} 5. Nf3 {[%clk 0:03:00]}  Nc6 {[%clk 0:03:01]} 6. e3 {[%clk 0:03:00]}  Nf6 {[%clk 0:03:01]} 7. Bb5 {[%clk 0:03:00]}  a6 {[%clk 0:03:01]} 8. Bxc6+ {[%clk 0:02:58]}  bxc6 {[%clk 0:03:02]} 9. O-O {[%clk 0:02:58]}  Bd6 {[%clk 0:03:02]} 10. dxc5 {[%clk 0:02:58]}  Bxc5 {[%clk 0:03:03]} 11. Na4 {[%clk 0:02:58]}  Bd6 {[%clk 0:03:01]} 12. b3 {[%clk 0:02:58]}  O-O {[%clk 0:02:57]} 13. Bb2 {[%clk 0:02:58]}  Ne4 {[%clk 0:02:57]} 14. Qd4 {[%clk 0:02:54]}  f6 {[%clk 0:02:54]} 15. Rac1 {[%clk 0:02:51]}  Bd7 {[%clk 0:02:52]} 16. Rfd1 {[%clk 0:02:08]}  Kh8 {[%clk 0:02:34]} 17. Qd3 {[%clk 0:01:50]}  a5 {[%clk 0:02:28]} 18. Bd4 {[%clk 0:01:47]}  Rb8 {[%clk 0:02:02]} 19. Nc5 {[%clk 0:01:38]}  Bf5 {[%clk 0:02:01]} 20. Qe2 {[%clk 0:01:34]}  Re8 {[%clk 0:01:32]} 21. Nh4 {[%clk 0:01:32]}  Bc8 {[%clk 0:01:25]} 22. Qh5 {[%clk 0:01:03]}  Kg8 {[%clk 0:01:17]} 23. Qe2 {[%clk 0:00:33]}  Qe7 {[%clk 0:01:03]} 24. Nxe4 {[%clk 0:00:32]}  Qxe4 {[%clk 0:01:02]} 25. Nf3 {[%clk 0:00:32]}  Bd7 {[%clk 0:00:57]} 26. Bc5 {[%clk 0:00:29]}  Bc7 {[%clk 0:00:53]} 27. Rd4 {[%clk 0:00:28]}  Qg6 {[%clk 0:00:49]} 28. Nh4 {[%clk 0:00:24]}  Qh6 {[%clk 0:00:45]} 29. Nf3 {[%clk 0:00:21]}  Re4 {[%clk 0:00:36]} 30. Rcd1 {[%clk 0:00:12]}  Bg4 {[%clk 0:00:26]} 31. h3 {[%clk 0:00:06]}  Bxh3 {[%clk 0:00:26]} 32. gxh3 {[%clk 0:00:07]}  Qxh3 {[%clk 0:00:25]} 33. Rxe4 {[%clk 0:00:06]}  dxe4 {[%clk 0:00:25]} 34. Bd6 {[%clk 0:00:05]}  exf3 {[%clk 0:00:20]} 35. Qf1 {[%clk 0:00:05]}  Qg4+ {[%clk 0:00:20]} 36. Kh1 {[%clk 0:00:05]}  Qh4+ {[%clk 0:00:17]} 37. Kg1 {[%clk 0:00:06]}  Qg4+ {[%clk 0:00:17]} 38. Kh1 {[%clk 0:00:06]}  Rb5 {[%clk 0:00:16]} 39. Bxc7 {[%clk 0:00:06]}  Rh5+ {[%clk 0:00:16]} 40. Bh2 {[%clk 0:00:06]}  Qh4 {[%clk 0:00:14]} 41. Qc4+ {[%clk 0:00:06]}  Kf8 {[%clk 0:00:13]} 42. Qxh4 {[%clk 0:00:05]}  Rxh4 {[%clk 0:00:12]} 43. Kg1 {[%clk 0:00:06]}  Rg4+ {[%clk 0:00:12]} 44. Bg3 {[%clk 0:00:06]}  Re4 {[%clk 0:00:12]} 45. Rd4 {[%clk 0:00:06]}  Re6 {[%clk 0:00:10]} 46. Kf1 {[%clk 0:00:06]}  g5 {[%clk 0:00:10]} 47. Ke1 {[%clk 0:00:06]}  h5 {[%clk 0:00:10]} 48. Rd6 {[%clk 0:00:06]}  h4 {[%clk 0:00:11]} 49. Rxe6 {[%clk 0:00:06]} 1-0


[Site "https://www.chess.com"]

[Event "Titled Tuesday Blitz March 07 Late 2023"]
[White "Bellissimo, Joseph F."]
[Black "Kovacs, Klara"]
[WhiteFideId "2609843"]
[BlackFideId "733210"]
[WhiteElo "2103"]
[BlackElo "2179"]
[Result "0-1"]
[Round "02"]
[TimeControl "180+2"]
[Date "2023.03.07"]
[WhiteClock "0:00:15"]
[BlackClock "0:00:56"]

1. e4 {[%clk 0:02:57]}  e6 {[%clk 0:02:57]} 2. d4 {[%clk 0:02:57]}  d5 {[%clk 0:02:58]} 3. Nd2 {[%clk 0:02:57]}  Be7 {[%clk 0:02:57]} 4. e5 {[%clk 0:02:56]}  c5 {[%clk 0:02:57]} 5. c3 {[%clk 0:02:56]}  Nc6 {[%clk 0:02:56]} 6. Ngf3 {[%clk 0:02:54]}  Qb6 {[%clk 0:02:56]} 7. Bd3 {[%clk 0:02:54]}  cxd4 {[%clk 0:02:54]} 8. cxd4 {[%clk 0:02:54]}  Nxd4 {[%clk 0:02:54]} 9. Nxd4 {[%clk 0:02:50]}  Qxd4 {[%clk 0:02:55]} 10. Nf3 {[%clk 0:02:50]}  Qb4+ {[%clk 0:02:53]} 11. Bd2 {[%clk 0:02:49]}  Qxb2 {[%clk 0:02:48]} 12. Rb1 {[%clk 0:02:49]}  Qa3 {[%clk 0:02:49]} 13. Bb5+ {[%clk 0:02:49]}  Kf8 {[%clk 0:02:47]} 14. Ng5 {[%clk 0:02:41]}  a6 {[%clk 0:02:37]} 15. Qh5 {[%clk 0:02:35]}  Nh6 {[%clk 0:02:05]} 16. Be2 {[%clk 0:01:59]}  b6 {[%clk 0:01:59]} 17. Rxb6 {[%clk 0:01:54]}  Bd7 {[%clk 0:01:58]} 18. O-O {[%clk 0:01:47]}  Qxa2 {[%clk 0:01:49]} 19. Rb7 {[%clk 0:01:45]}  Qxd2 {[%clk 0:01:46]} 20. h4 {[%clk 0:01:31]}  Bc6 {[%clk 0:01:43]} 21. Rc7 {[%clk 0:01:25]}  Be8 {[%clk 0:01:43]} 22. Rfc1 {[%clk 0:01:17]}  Bxg5 {[%clk 0:01:42]} 23. hxg5 {[%clk 0:01:16]}  Nf5 {[%clk 0:01:42]} 24. Bg4 {[%clk 0:01:05]}  g6 {[%clk 0:01:41]} 25. Qh3 {[%clk 0:00:59]}  Qxg5 {[%clk 0:01:40]} 26. Bxf5 {[%clk 0:00:53]}  gxf5 {[%clk 0:01:40]} 27. Qa3+ {[%clk 0:00:50]}  Kg7 {[%clk 0:01:37]} 28. R1c3 {[%clk 0:00:51]}  f4 {[%clk 0:01:25]} 29. Qd6 {[%clk 0:00:45]}  Qf5 {[%clk 0:01:20]} 30. Rh3 {[%clk 0:00:38]}  Rb8 {[%clk 0:01:10]} 31. Kh2 {[%clk 0:00:28]}  Rb1 {[%clk 0:01:09]} 32. Rh4 {[%clk 0:00:23]}  Rg8 {[%clk 0:01:08]} 33. Rc8 {[%clk 0:00:21]}  Ra1 {[%clk 0:01:06]} 34. f3 {[%clk 0:00:20]}  Qb1 {[%clk 0:01:04]} 35. Rg4+ {[%clk 0:00:20]}  Kh6 {[%clk 0:01:02]} 36. Rh4+ {[%clk 0:00:20]}  Kg6 {[%clk 0:01:00]} 37. Rg4+ {[%clk 0:00:20]}  Kh5 {[%clk 0:01:00]} 38. Rc1 {[%clk 0:00:16]}  Qxc1 {[%clk 0:00:59]} 39. Rh4+ {[%clk 0:00:16]}  Kxh4 {[%clk 0:00:56]} 40. Qe7+ {[%clk 0:00:16]}  Kh5 {[%clk 0:00:57]} 41. Qh4+ {[%clk 0:00:13]}  Kxh4 {[%clk 0:00:56]} 42. g3+ {[%clk 0:00:14]}  fxg3+ {[%clk 0:00:56]} 43. Kg2 {[%clk 0:00:15]}  Ra2# {[%clk 0:00:56]} 0-1


[Site "https://www.chess.com"]

[Event "Titled Tuesday Blitz March 07 Late 2023"]
[White "Dragomirescu, Angela"]
[Black "Abdyzhaparov, Aidar"]
[WhiteFideId "1209914"]
[BlackFideId "13800361"]
[WhiteElo "2171"]
[BlackElo "2002"]
[Result "1-0"]
[Round "02"]
[TimeControl "180+2"]
[Date "2023.03.07"]
[WhiteClock "0:00:22"]
[BlackClock "0:00:11"]

1. e4 {[%clk 0:03:00]}  d6 {[%clk 0:03:00]} 2. d4 {[%clk 0:03:00]}  Nf6 {[%clk 0:03:01]} 3. Nc3 {[%clk 0:03:00]}  e5 {[%clk 0:03:02]} 4. Nf3 {[%clk 0:03:00]}  Nbd7 {[%clk 0:03:02]} 5. Bc4 {[%clk 0:03:00]}  Be7 {[%clk 0:03:02]} 6. O-O {[%clk 0:02:59]}  O-O {[%clk 0:03:03]} 7. Re1 {[%clk 0:02:55]}  c6 {[%clk 0:03:03]} 8. a4 {[%clk 0:02:56]}  b6 {[%clk 0:03:03]} 9. h3 {[%clk 0:02:50]}  a6 {[%clk 0:03:04]} 10. dxe5 {[%clk 0:02:44]}  Nxe5 {[%clk 0:03:01]} 11. Ba2 {[%clk 0:02:37]}  Qc7 {[%clk 0:02:53]} 12. Nd4 {[%clk 0:02:34]}  c5 {[%clk 0:02:45]} 13. Nde2 {[%clk 0:02:30]}  Be6 {[%clk 0:02:42]} 14. Bg5 {[%clk 0:02:25]}  Bxa2 {[%clk 0:02:35]} 15. Rxa2 {[%clk 0:02:24]}  b5 {[%clk 0:02:19]} 16. Bxf6 {[%clk 0:02:16]}  Bxf6 {[%clk 0:02:18]} 17. Nd5 {[%clk 0:02:17]}  Qd8 {[%clk 0:02:19]} 18. axb5 {[%clk 0:02:16]}  axb5 {[%clk 0:02:20]} 19. Rxa8 {[%clk 0:02:16]}  Qxa8 {[%clk 0:02:20]} 20. Nxf6+ {[%clk 0:02:16]}  gxf6 {[%clk 0:02:21]} 21. Ng3 {[%clk 0:02:14]}  Rd8 {[%clk 0:02:17]} 22. Qh5 {[%clk 0:02:08]}  Rd7 {[%clk 0:02:07]} 23. Qh6 {[%clk 0:01:45]}  Qf8 {[%clk 0:02:05]} 24. Qxf6 {[%clk 0:01:46]}  Qg7 {[%clk 0:02:05]} 25. Qf4 {[%clk 0:01:36]}  Ng6 {[%clk 0:02:02]} 26. Qf5 {[%clk 0:01:37]}  Re7 {[%clk 0:01:54]} 27. c3 {[%clk 0:01:18]}  Qe5 {[%clk 0:01:43]} 28. Qc8+ {[%clk 0:01:18]}  Re8 {[%clk 0:01:43]} 29. Qc6 {[%clk 0:01:16]}  Nh4 {[%clk 0:01:34]} 30. Qxb5 {[%clk 0:01:06]}  Re6 {[%clk 0:01:24]} 31. Re3 {[%clk 0:01:01]}  Rg6 {[%clk 0:01:19]} 32. Qe2 {[%clk 0:00:47]}  Rg5 {[%clk 0:01:09]} 33. Rd3 {[%clk 0:00:44]}  Ng6 {[%clk 0:01:08]} 34. Qd2 {[%clk 0:00:32]}  Nf4 {[%clk 0:01:02]} 35. Rf3 {[%clk 0:00:32]}  Ng6 {[%clk 0:00:50]} 36. Rf5 {[%clk 0:00:26]}  Rxf5 {[%clk 0:00:43]} 37. Nxf5 {[%clk 0:00:27]}  Qf4 {[%clk 0:00:22]} 38. Qxf4 {[%clk 0:00:26]}  Nxf4 {[%clk 0:00:23]} 39. Nxd6 {[%clk 0:00:27]}  Nd3 {[%clk 0:00:23]} 40. Nc4 {[%clk 0:00:23]}  Kg7 {[%clk 0:00:21]} 41. Kf1 {[%clk 0:00:22]}  Kf6 {[%clk 0:00:20]} 42. g3 {[%clk 0:00:22]}  Ke6 {[%clk 0:00:18]} 43. Ke2 {[%clk 0:00:22]}  Nc1+ {[%clk 0:00:18]} 44. Kd2 {[%clk 0:00:20]}  Nb3+ {[%clk 0:00:17]} 45. Kc2 {[%clk 0:00:21]}  Na1+ {[%clk 0:00:16]} 46. Kb1 {[%clk 0:00:20]}  Nb3 {[%clk 0:00:17]} 47. f4 {[%clk 0:00:21]}  f5 {[%clk 0:00:15]} 48. e5 {[%clk 0:00:19]}  Kd5 {[%clk 0:00:13]} 49. Ne3+ {[%clk 0:00:18]}  Ke6 {[%clk 0:00:13]} 50. Kc2 {[%clk 0:00:18]}  Na5 {[%clk 0:00:13]} 51. Kd3 {[%clk 0:00:19]}  h5 {[%clk 0:00:09]} 52. Nc4 {[%clk 0:00:17]}  Nb3 {[%clk 0:00:08]} 53. Ne3 {[%clk 0:00:17]}  Na5 {[%clk 0:00:07]} 54. b4 {[%clk 0:00:17]}  cxb4 {[%clk 0:00:07]} 55. cxb4 {[%clk 0:00:18]}  Nc6 {[%clk 0:00:07]} 56. Kc4 {[%clk 0:00:19]}  Ne7 {[%clk 0:00:06]} 57. b5 {[%clk 0:00:19]}  Nc8 {[%clk 0:00:06]} 58. Kc5 {[%clk 0:00:19]}  Ne7 {[%clk 0:00:06]} 59. b6 {[%clk 0:00:20]}  h4 {[%clk 0:00:06]} 60. gxh4 {[%clk 0:00:20]}  Ng6 {[%clk 0:00:07]} 61. Ng2 {[%clk 0:00:20]}  Nxf4 {[%clk 0:00:08]} 62. Nxf4+ {[%clk 0:00:21]}  Kxe5 {[%clk 0:00:08]} 63. b7 {[%clk 0:00:22]}  Kxf4 {[%clk 0:00:08]} 64. b8=Q+ {[%clk 0:00:22]}  Kf3 {[%clk 0:00:08]} 65. h5 {[%clk 0:00:23]}  f4 {[%clk 0:00:08]} 66. h6 {[%clk 0:00:24]}  Kg2 {[%clk 0:00:09]} 67. h7 {[%clk 0:00:25]}  f3 {[%clk 0:00:09]} 68. h8=Q {[%clk 0:00:26]}  f2 {[%clk 0:00:10]} 69. Qg7+ {[%clk 0:00:26]}  Kh1 {[%clk 0:00:11]} 70. Qbb7+ {[%clk 0:00:22]} 1-0


[Site "https://www.chess.com"]